bitfinex-derivatives/quotes_ETHF0:USTF0_20250616
["timestamp","ask_amount","ask_price","bid_price","bid_amount"]
[1750079446526,5.29814,2611.5,2611.4,0.83314406]
[1750079446723,3.97354,2611.5,2611.4,0.06737406]
[1750079447124,3.2078,2611.5,2611.4,0.06737406]
[1750079447327,3.97354,2611.5,2611.4,0.06737406]
[1750079447630,3.97354,2611.5,2611.4,0.83314406]
[1750079448527,3.2078,2611.5,2611.4,0.83314406]
[1750079448829,34.07254,2611.5,2611.4,0.83314406]
[1750079449031,33.3068,2611.5,2611.4,0.83314406]
[1750079449328,34.07254,2611.5,2611.4,0.83314406]
[1750079449933,3.2078,2611.5,2611.4,0.83314406]
[1750079450240,3.97342,2611.9,2611.8,0.76565]
[1750079450426,27.78542,2611.9,2611.8,2.29748857]
[1750079450824,27.78542,2611.9,2611.8,0.76565]
[1750079451431,0.76571,2611.7,2611.6,0.76569]
[1750079451633,24.57771,2611.7,2611.6,0.76569]
[1750079451821,24.57771,2611.7,2611.4,4.47769247]
[1750079451822,0.76574,2611.5,2611.4,3.13109247]
[1750079452129,30.86674,2611.5,2611.4,1.59944265]
[1750079452538,32.72744,2611.5,2611.4,1.59944265]
[1750079453238,32.72744,2611.5,2611.4,1.21653601]
[1750079453534,32.72744,2611.5,2611.4,0.06737406]
[1750079453731,32.72744,2611.5,2611.3,1.15490567]
[1750079453732,0.76577,2611.4,2611.3,1.15490567]
[1750079453927,10.5013982,2611.4,2611.3,1.15490567]
[1750079454133,0.76583,2611.2,2611.1,1.14916195]
[1750079454334,27.78663,2611.2,2611.1,1.14916195]
[1750079454524,32.78663,2611.2,2611.1,1.14916195]
[1750079455134,27.78663,2611.2,2611.1,1.91502195]
[1750079455329,33.3078,2611.2,2611.1,1.91502195]
[1750079455531,3.2078,2611.2,2611.1,1.91502195]
[1750079455738,33.3248,2611.2,2611.1,0.76586]
[1750079456337,0.00574372,2611.4,2611.3,0.7658]
[1750079456538,30.11974372,2611.4,2611.3,0.7658]
[1750079457038,30.11674372,2611.4,2611.3,0.7658]
[1750079458139,30.11874372,2611.4,2611.3,0.7658]
[1750079458339,23.81874372,2611.4,2611.3,2.1029]
[1750079458543,23.82974372,2611.4,2611.3,5.3107]
[1750079458839,23.82974372,2611.4,2611.3,8.37480453]
[1750079460743,32.32407192,2611.4,2611.2,3.06410453]
[1750079461038,0.7658,2611.3,2611.2,1.53214899]
[1750079461339,1.9715,2611.3,2610.9,0.00574372]
[1750079461540,0.76588,2611.0,2610.9,0.00574372]
[1750079461754,23.822,2611.0,2610.9,0.77165372]
[1750079462735,23.822,2611.0,2610.9,5.33615372]
[1750079462928,23.822,2611.0,2610.9,2.12835372]
[1750079465042,24.58788,2611.0,2610.9,0.83902778]
[1750079465235,24.58788,2611.0,2610.9,3.1374483]
[1750079465437,33.0822082,2611.0,2610.9,3.1374483]
[1750079465640,33.0822082,2611.0,2610.9,0.83902778]
[1750079465938,33.0822082,2611.0,2610.9,0.07311778]
[1750079466540,23.822,2611.0,2610.9,0.83902778]
[1750079467444,24.58788,2611.0,2610.9,0.07311778]
[1750079468045,24.58788,2611.0,2610.9,0.83902778]
[1750079468246,24.58788,2611.0,2610.9,2.37138666]
[1750079468837,24.58788,2611.0,2610.9,0.83902778]
[1750079469945,24.58788,2611.0,2610.9,2.37135897]
[1750079470342,24.58788,2611.0,2610.9,1.60544897]
[1750079470647,25.23328,2611.0,2610.9,1.22243454]
[1750079471547,33.7276082,2611.0,2610.9,1.22243454]
[1750079472245,33.7276082,2611.0,2610.9,0.07311778]
[1750079472746,33.7276082,2611.0,2610.9,0.83902778]
[1750079473047,33.7276082,2611.0,2610.9,1.98830359]
[1750079473239,33.7276082,2611.0,2610.9,1.22239359]
[1750079473745,33.7276082,2611.0,2610.9,1.98830359]
[1750079473746,9.9056082,2611.0,2610.9,1.98830359]
[1750079473941,33.6706082,2611.0,2610.9,1.98830359]
[1750079474351,33.6706082,2611.0,2610.9,1.22239359]
[1750079474648,33.6706082,2611.0,2610.9,1.98830359]
[1750079475242,33.6706082,2611.0,2610.9,1.22239359]
[1750079475652,24.53088,2611.0,2610.9,1.98830359]
[1750079475851,24.53088,2611.0,2610.9,2.16382778]
[1750079476350,33.0252082,2611.0,2610.9,1.22241756]
[1750079476553,33.0252082,2611.0,2610.9,1.98832756]
[1750079477652,33.0252082,2611.0,2610.9,1.22241756]
[1750079478156,24.51888,2611.0,2610.9,0.83902778]
[1750079478354,24.51888,2611.0,2610.9,1.98819881]
[1750079478656,0.76587,2611.1,2611.0,0.76588]
[1750079478849,3.2078,2611.2,2611.1,0.76585]
[1750079479051,33.2108,2611.2,2611.1,2.00705]
[1750079479247,33.2108,2611.2,2611.1,4.96350162]
[1750079479449,33.2108,2611.2,2611.1,2.66495]
[1750079480248,9.4728,2611.2,2611.1,2.66495]
[1750079480555,29.999,2611.2,2611.1,4.19341365]
[1750079481649,29.999,2611.2,2611.1,0.6579]
[1750079481650,30.76483,2611.2,2611.1,0.6579]
[1750079482043,0.76585,2611.1,2611.0,1.52846365]
[1750079482244,0.76588,2611.0,2610.9,1.2187776]
[1750079482449,24.50788,2611.0,2610.9,0.07311778]
[1750079483353,25.77318,2611.0,2610.9,0.07311778]
[1750079485159,24.50788,2611.0,2610.9,0.83902778]
[1750079485550,5.77529,2611.2,2610.9,0.07311778]
[1750079485759,0.76588,2611.0,2610.9,1.9846676]
[1750079486355,24.49988,2611.0,2610.9,1.9846676]
[1750079486858,24.49988,2611.0,2610.9,1.21954716]
[1750079487255,32.9942082,2611.0,2610.9,0.07311778]
[1750079487857,34.3078082,2611.0,2610.9,0.07311778]
[1750079488656,0.76597,2610.7,2610.6,1.14655355]
[1750079488963,0.76606,2610.4,2610.3,3.60316365]
[1750079489265,24.48206,2610.4,2610.3,4.36923365]
[1750079489458,24.48206,2610.4,2610.3,1.62846365]
[1750079489660,27.68986,2610.4,2610.3,1.62846365]
[1750079489968,27.68986,2610.4,2610.3,0.1]
[1750079490764,27.68986,2610.4,2610.3,0.86609]
[1750079491164,27.68986,2610.4,2610.3,0.1]
[1750079491358,27.68986,2610.4,2610.3,1.24630017]
[1750079492566,27.68986,2610.4,2610.3,2.01239017]
[1750079492966,27.68986,2610.4,2610.3,1.24630017]
[1750079493170,3.2078,2610.4,2610.3,2.01239017]
[1750079493363,33.1918,2610.4,2610.3,2.01239017]
[1750079493861,33.95786,2610.4,2610.3,3.34079017]
[1750079494259,33.95786,2610.4,2610.3,0.1]
[1750079495170,33.95786,2610.4,2610.3,0.86609]
[1750079495370,33.95786,2610.4,2610.3,0.93346406]
[1750079496068,9.4738,2610.7,2610.6,0.766]
[1750079496370,33.1918,2610.7,2610.6,0.766]
[1750079496582,29.984,2610.7,2610.6,2.668]
[1750079497073,6.266,2610.7,2610.6,2.668]
[1750079497264,29.993,2610.7,2610.6,4.19646365]
[1750079498759,3.9737,2611.0,2610.9,0.76591]
[1750079498760,6.266,2611.0,2610.9,0.76591]
[1750079498960,29.986,2611.0,2610.9,0.76591]
[1750079499169,29.986,2611.0,2610.9,2.29308737]
[1750079499560,6.266,2611.0,2610.9,3.61918737]
[1750079499760,29.987,2611.0,2610.9,3.61918737]
[1750079499961,39.2472082,2611.0,2610.9,1.52717737]
[1750079500162,38.4813282,2611.0,2610.9,0.76591]
[1750079500364,41.6891282,2611.0,2610.9,0.76591]
[1750079501374,42.4550282,2611.0,2610.9,0.76591]
[1750079501574,33.1948,2611.0,2610.9,0.76591]
[1750079501970,33.1948,2611.0,2610.9,2.08031]
[1750079502367,33.96068,2611.0,2610.9,2.08031]
[1750079503069,33.1948,2611.0,2610.9,2.08031]
[1750079503461,33.96068,2611.0,2610.9,2.08031]
[1750079504179,3.2078,2611.0,2610.9,2.08031]
[1750079504479,3.2078,2611.0,2610.9,3.22565588]
[1750079504675,33.1328,2611.0,2610.9,3.22565588]
[1750079504866,0.76585,2611.2,2611.1,0.76586]
[1750079505062,30.68785,2611.2,2611.1,0.76586]
[1750079505573,30.68785,2611.2,2611.0,1.14534461]
[1750079505877,0.76586,2611.1,2611.0,1.14534461]
[1750079506082,0.76586,2611.1,2610.8,1.52717737]
[1750079506083,0.76591,2610.9,2610.8,1.14534461]
[1750079506273,0.76591,2610.9,2610.7,1.91130461]
[1750079506274,0.76594,2610.8,2610.7,1.91130461]
[1750079506475,7.64674,2610.8,2610.7,0.76596]
[1750079506669,0.76597,2610.7,2610.6,2.56752461]
[1750079506865,0.76597,2610.7,2610.6,1.14534461]
[1750079506866,24.46597,2610.7,2610.6,1.14534461]
[1750079507172,0.76603,2610.5,2610.4,1.91138461]
[1750079507370,24.48303,2610.5,2610.4,1.14534461]
[1750079507574,24.48303,2610.5,2610.4,1.91140461]
[1750079507874,24.48303,2610.5,2610.4,1.14534461]
[1750079508079,24.48303,2610.5,2610.4,1.91140461]
[1750079508482,24.48303,2610.5,2610.4,1.14534461]
[1750079508672,0.76606,2610.4,2610.3,1.31271867]
[1750079508873,6.99206,2610.4,2610.3,0.16737406]
[1750079509273,6.226,2610.4,2610.3,0.93346406]
[1750079509475,6.226,2610.4,2610.3,2.07880867]
[1750079509681,6.226,2610.4,2610.3,2.01143461]
[1750079509977,6.99206,2610.4,2610.3,0.86609]
[1750079510577,6.226,2610.4,2610.3,0.86609]
[1750079511182,6.226,2610.4,2610.3,2.14759]
[1750079511590,6.99206,2610.4,2610.3,2.14759]
[1750079511885,6.226,2610.4,2610.3,2.14759]
[1750079512073,6.99206,2610.4,2610.3,2.14759]
[1750079512279,6.226,2610.4,2610.3,2.14759]
[1750079512478,6.226,2610.4,2610.3,3.67476737]
[1750079512875,3.2078,2610.6,2610.5,0.76603]
[1750079513080,26.9038,2610.6,2610.5,2.29320737]
[1750079513386,26.9038,2610.6,2610.5,0.76603]
[1750079513587,26.9038,2610.6,2610.5,3.34923]
[1750079513785,3.2078,2610.6,2610.5,5.64778162]
[1750079514085,26.9038,2610.6,2610.5,5.64778162]
[1750079514786,3.2078,2610.6,2610.5,5.64778162]
[1750079514981,0.76589,2611.0,2610.9,0.76589]
[1750079515182,0.76584,2611.2,2611.1,0.76583]
[1750079515379,30.67684,2611.2,2611.1,0.76583]
[1750079515580,0.76586,2611.1,2611.0,0.6299]
[1750079516193,0.76586,2611.1,2611.0,1.39578]
[1750079516693,6.99184,2611.2,2611.1,0.76585]
[1750079516896,29.908,2611.2,2611.1,0.76585]
[1750079517087,6.226,2611.2,2611.1,1.37945]
[1750079517290,0.00574372,2611.4,2611.3,0.7658]
[1750079517489,0.00574372,2611.4,2611.3,3.9736]
[1750079517687,0.00574372,2611.4,2611.3,6.84963134]
[1750079517892,0.00574372,2611.4,2611.3,13.24963134]
[1750079519491,0.00574372,2611.4,2611.3,11.722]
[1750079520288,0.00574372,2611.4,2611.3,13.24963134]
[1750079520495,0.00574372,2611.4,2611.3,11.722]
[1750079520688,0.00574372,2611.4,2611.3,13.24963134]
[1750079521787,6.226,2611.7,2611.6,0.76571]
[1750079521983,3.16972,2612.1,2611.6,0.76571]
[1750079521984,5.1213,2612.7,2611.6,3.2078]
[1750079522296,0.76541,2612.7,2612.6,3.97321]
[1750079522495,0.76536,2612.8,2612.6,3.2078]
[1750079522699,24.44836,2612.8,2612.7,0.76539]
[1750079522887,24.44836,2612.8,2612.7,0.76537]
[1750079522888,0.76537,2612.8,2612.7,0.76537]
[1750079523089,1.41435,2612.9,2612.8,0.76536]
[1750079523288,25.10135,2612.9,2612.8,0.76536]
[1750079523491,25.10135,2612.9,2612.6,5.33369]
[1750079523492,0.76539,2612.7,2612.6,5.33369]
[1750079523892,0.76538,2612.8,2612.7,0.76539]
[1750079524099,0.649,2612.9,2612.8,0.76536]
[1750079524396,24.331,2612.9,2612.7,2.12586]
[1750079524596,0.76536,2612.8,2612.7,2.12586]
[1750079524794,23.682,2612.9,2612.8,0.76536]
[1750079525097,23.682,2612.9,2612.8,2.12586]
[1750079525298,24.44733,2612.9,2612.8,1.3605]
[1750079525594,0.76536,2612.8,2612.7,0.76537]
[1750079525988,24.44735,2612.9,2612.8,0.76536]
[1750079526189,23.682,2612.9,2612.8,0.76536]
[1750079526389,24.44733,2612.9,2612.8,0.76536]
[1750079526993,0.76536,2612.8,2612.7,0.06737406]
[1750079527194,24.44734,2612.9,2612.7,0.06737406]
[1750079527394,23.682,2612.9,2612.8,0.76536]
[1750079527593,6.22974372,2613.0,2612.9,0.76533]
[1750079527897,29.88874372,2613.0,2612.9,0.76533]
[1750079528595,0.76533,2612.9,2612.8,2.45829801]
[1750079528894,24.41633,2612.9,2612.8,2.45829801]
[1750079530002,0.76536,2612.8,2612.7,3.29106207]
[1750079530488,0.76536,2612.8,2612.7,2.52567207]
[1750079530693,24.41936,2612.8,2612.7,2.52567207]
[1750079531198,25.03166,2612.8,2612.7,2.52567207]
[1750079531601,0.76542,2612.6,2612.5,0.00574372]
[1750079531803,15.4817482,2612.6,2612.5,0.00574372]
[1750079532001,0.76556,2612.1,2612.0,3.2078]
[1750079532196,24.41656,2612.1,2612.0,3.97337]
[1750079532502,24.41656,2612.1,2612.0,3.97339]
[1750079533808,24.41656,2612.1,2612.0,3.2078]
[1750079534300,24.41656,2612.1,2612.0,3.97339]
[1750079535005,23.651,2612.1,2612.0,3.97339]
[1750079535405,23.651,2612.1,2612.0,5.29249]
[1750079536299,2.59133,2612.7,2612.0,5.29249]
[1750079536300,6.198,2612.8,2612.2,1.91384]
[1750079536498,23.655,2612.7,2612.3,3.2078]
[1750079536697,0.76546,2612.5,2612.4,0.76545]
[1750079537197,0.76547,2612.5,2612.4,0.76546]
[1750079537403,0.76547,2612.4,2612.3,3.97328]
[1750079537704,24.42447,2612.4,2612.3,3.97328]
[1750079538005,23.659,2612.4,2612.3,3.97328]
[1750079538210,24.42447,2612.4,2612.3,3.97328]
[1750079538506,23.659,2612.4,2612.3,3.97328]
[1750079539692,24.42447,2612.4,2612.3,3.97328]
[1750079540207,0.675,2612.6,2612.5,0.76544]
[1750079540408,24.318,2612.6,2612.5,0.76544]
[1750079541006,24.317,2612.6,2612.5,0.76544]
[1750079541200,25.08242,2612.6,2612.5,0.76544]
[1750079543009,24.317,2612.6,2612.5,0.76544]
[1750079543208,6.197,2612.7,2612.6,0.76542]
[1750079543407,0.76536,2612.9,2612.8,0.76534]
[1750079543702,0.67214372,2613.0,2612.9,0.76533]
[1750079543910,30.50314372,2613.0,2612.9,0.76533]
[1750079544215,6.20274372,2613.0,2612.9,0.76533]
[1750079544509,29.83974372,2613.0,2612.9,2.02323]
[1750079544701,6.20274372,2613.0,2612.9,2.02323]
[1750079544902,29.83974372,2613.0,2612.9,2.02323]
[1750079545602,0.00574372,2613.0,2612.9,2.02323]
[1750079545803,3.2078,2613.4,2613.3,0.76521]
[1750079546004,0.6791,2613.5,2613.4,0.76518]
[1750079546211,6.197,2613.6,2613.5,0.76515]
[1750079546509,26.8498,2613.7,2613.6,0.76512]
[1750079547311,0.76512,2613.6,2613.5,0.76513]
[1750079547807,0.76517,2613.5,2613.3,0.7652]
[1750079548013,0.76517,2613.5,2613.4,0.76518]
[1750079548309,25.06395,2613.6,2613.4,0.76518]
[1750079548505,25.06395,2613.6,2613.5,0.76515]
[1750079548703,0.76515,2613.5,2613.4,0.76516]
[1750079549511,25.06393,2613.6,2613.5,0.76515]
[1750079550116,0.76516,2613.5,2613.4,0.76516]
[1750079550411,25.06394,2613.6,2613.5,0.76515]
[1750079550810,24.2988,2613.6,2613.5,0.76515]
[1750079553314,23.636,2613.6,2613.5,0.76515]
[1750079553711,6.197,2613.7,2613.6,0.76512]
[1750079554013,0.63444372,2613.9,2613.6,0.76512]
[1750079554221,0.00574372,2613.9,2613.8,3.97286]
[1750079554411,23.61474372,2613.9,2613.8,3.97286]
[1750079554611,23.62074372,2613.9,2613.8,3.97286]
[1750079555110,23.62074372,2613.9,2613.8,5.30306]
[1750079555512,0.00574372,2613.9,2613.8,5.30306]
[1750079555715,26.3558,2614.8,2614.7,0.7648]
[1750079555902,49.9768,2614.8,2614.7,0.7648]
[1750079556307,50.74157,2614.8,2614.7,0.7648]
[1750079556627,26.8418,2614.8,2614.7,0.7648]
[1750079557011,6.195,2614.9,2614.8,0.76477]
[1750079557204,29.84,2614.9,2614.8,0.76477]
[1750079557516,6.195,2614.9,2614.8,0.76477]
[1750079557811,29.837,2614.9,2614.8,0.76477]
[1750079558612,0.00574372,2615.0,2614.9,0.76474]
[1750079558914,23.64374372,2615.0,2614.9,0.76474]
[1750079559713,0.00574372,2615.0,2614.9,0.76474]
[1750079561623,0.00574372,2615.0,2614.5,2.55526372]
[1750079561624,0.76483,2614.6,2614.5,0.77059372]
[1750079561918,23.641,2614.6,2614.5,0.77059372]
[1750079562114,24.40583,2614.6,2614.5,0.77059372]
[1750079562918,0.76483,2614.6,2614.5,0.77059372]
[1750079563218,24.41683,2614.6,2614.5,0.77059372]
[1750079563416,23.647,2614.6,2614.5,0.77060372]
[1750079563614,23.647,2614.6,2614.5,2.09420372]
[1750079563911,1.3473,2614.9,2614.8,0.76477]
[1750079563912,24.9943,2614.9,2614.8,0.76477]
[1750079564518,24.3231,2614.9,2614.8,0.76477]
[1750079564909,6.19874372,2615.0,2614.9,0.76474]
[1750079565212,0.00574372,2615.0,2614.9,0.76474]
[1750079565412,0.00574372,2615.0,2614.9,2.76444]
[1750079565614,0.77047372,2615.0,2614.9,0.76474]
[1750079566521,0.00574372,2615.0,2614.9,0.76474]
[1750079567219,0.77045372,2615.0,2614.9,0.76474]
[1750079567522,0.00574372,2615.0,2614.9,0.76474]
[1750079568020,0.77045372,2615.0,2614.9,0.76474]
[1750079568217,0.00574372,2615.0,2614.7,3.2078]
[1750079568422,0.76483,2614.6,2614.5,0.00574372]
[1750079568613,8.11786,2614.9,2614.5,0.00574372]
[1750079568614,23.629,2614.7,2614.5,0.00574372]
[1750079568808,0.76483,2614.6,2614.5,0.77059372]
[1750079569718,24.39382,2614.7,2614.6,0.76483]
[1750079570722,0.76483,2614.6,2614.5,0.00574372]
[1750079570913,2.11273,2614.6,2614.5,0.00574372]
[1750079571526,0.76496,2614.2,2614.0,9.6078]
[1750079571822,24.2891,2614.1,2614.0,3.97278]
[1750079572023,25.05408,2614.1,2614.0,3.97278]
[1750079572226,25.05408,2614.1,2614.0,3.2078]
[1750079575717,26.30738,2614.1,2614.0,3.2078]
[1750079576323,26.30738,2614.1,2613.9,0.1]
[1750079576324,0.76501,2614.0,2613.9,0.1]
[1750079576728,2.01831,2614.0,2613.9,0.1]
[1750079578228,11.7021282,2614.1,2613.9,0.1]
[1750079578529,6.97197,2614.2,2614.1,0.76498]
[1750079578728,30.60397,2614.2,2614.1,0.76498]
[1750079578927,6.207,2614.2,2614.1,0.76498]
[1750079579127,24.3086,2614.4,2614.3,0.76492]
[1750079580026,0.6776,2614.4,2614.3,0.76492]
[1750079580228,24.3206,2614.4,2614.2,3.97274]
[1750079580424,0.76495,2614.2,2614.1,0.76495]
[1750079580932,0.76494,2614.3,2614.2,0.76492]
[1750079581124,0.76494,2614.3,2614.2,3.97272]
[1750079581428,0.76494,2614.3,2614.2,0.76492]
[1750079582734,29.344,2614.6,2614.5,0.76486]
[1750079582926,6.97182,2614.7,2614.6,0.7648]
[1750079583127,30.61082,2614.7,2614.6,0.7648]
[1750079583328,6.97182,2614.7,2614.6,0.7648]
[1750079583533,6.97182,2614.7,2614.6,2.0893]
[1750079583534,6.207,2614.7,2614.6,2.0893]
[1750079583731,30.6068,2614.7,2614.6,2.0893]
[1750079583926,29.842,2614.7,2614.6,2.0893]
[1750079584127,30.6068,2614.7,2614.6,2.0893]
[1750079584431,29.846,2614.7,2614.6,5.2971]
[1750079584636,23.639,2614.7,2614.6,5.2971]
[1750079584834,23.639,2614.7,2614.6,5.36447406]
[1750079585032,0.00574372,2615.0,2614.9,0.76474]
[1750079585231,0.00574372,2615.0,2614.9,3.97254]
[1750079585432,23.64074372,2615.0,2614.9,3.97254]
[1750079585935,23.64074372,2615.0,2614.8,1.9197]
[1750079585936,24.40546372,2615.0,2614.8,1.9197]
[1750079586332,24.40546372,2615.0,2614.9,3.97254]
[1750079586535,23.64074372,2615.0,2614.9,3.97254]
[1750079586732,23.64074372,2615.0,2614.9,5.21814]
[1750079587026,23.64274372,2615.0,2614.9,5.21814]
[1750079587531,24.40745372,2615.0,2614.9,5.21814]
[1750079587832,23.64274372,2615.0,2614.9,5.21814]
[1750079588336,24.40745372,2615.0,2614.9,5.21814]
[1750079589136,23.64274372,2615.0,2614.9,5.21814]
[1750079589632,24.40745372,2615.0,2614.9,5.21814]
[1750079589938,23.64274372,2615.0,2614.9,5.21814]
[1750079590137,23.62474372,2615.0,2614.9,5.21814]
[1750079590337,24.38945372,2615.0,2614.9,3.2078]
[1750079590535,0.76474,2614.9,2614.8,1.43886]
[1750079591232,0.76474,2614.9,2614.8,7.83886]
[1750079591432,0.76477,2614.8,2614.7,1.14093444]
[1750079591648,0.76489,2614.4,2614.3,1.14093444]
[1750079591935,0.76495,2614.2,2614.1,1.9704]
[1750079592142,0.76495,2614.2,2614.1,0.6148]
[1750079592640,0.76495,2614.2,2614.1,1.37978]
[1750079593536,0.76495,2614.2,2614.1,0.6148]
[1750079593738,0.76497,2614.2,2614.1,0.76496]
[1750079594133,0.76494,2614.3,2614.2,0.76493]
[1750079594333,0.76497,2614.2,2614.0,10.74873444]
[1750079594539,0.76497,2614.2,2614.1,1.3518]
[1750079595038,0.76498,2614.1,2614.0,10.37279]
[1750079595239,0.76498,2614.1,2614.0,11.51372444]
[1750079595438,0.76497,2614.2,2614.1,0.76496]
[1750079595939,23.631,2614.3,2614.0,10.9596]
[1750079596138,0.76498,2614.1,2614.0,11.72459]
[1750079596338,0.76498,2614.1,2614.0,12.86552444]
[1750079597245,0.76497,2614.2,2614.1,0.76496]
[1750079598041,23.631,2614.3,2614.0,5.70053444]
[1750079598042,0.76498,2614.1,2614.0,6.46551444]
[1750079598240,0.76498,2614.1,2614.0,6.46554444]
[1750079598744,0.76497,2614.2,2614.1,0.76497]
[1750079599246,0.76494,2614.3,2614.2,0.76493]
[1750079599446,30.56594,2614.3,2614.2,0.76493]
[1750079600143,0.668,2614.7,2614.6,0.76483]
[1750079600448,24.3758,2614.7,2614.6,3.97263]
[1750079600841,6.191,2614.8,2614.6,3.2078]
[1750079601048,29.8,2614.8,2614.7,0.7648]
[1750079601245,0.6402,2615.1,2614.7,2.0832]
[1750079601439,0.76477,2614.8,2614.7,2.0832]
[1750079601651,24.37476,2614.9,2614.8,0.76477]
[1750079602745,0.76479,2614.8,2614.7,0.76478]
[1750079603341,23.61,2614.9,2614.6,4.35014668]
[1750079603342,0.7648,2614.7,2614.6,4.35014668]
[1750079603539,0.76483,2614.6,2614.5,1.79924668]
[1750079603739,24.37083,2614.6,2614.5,2.56410668]
[1750079603939,0.76486,2614.5,2614.4,1.14234668]
[1750079604147,0.76489,2614.4,2614.3,1.90725668]
[1750079604445,7.59637,2614.5,2614.4,0.76489]
[1750079605546,0.76489,2614.4,2614.3,1.90725668]
[1750079608350,0.76489,2614.4,2614.3,0.76491]
[1750079608947,7.59638,2614.5,2614.4,0.76489]
[1750079609151,31.18538,2614.5,2614.4,1.90852075]
[1750079609544,31.18538,2614.5,2614.4,1.14363075]
[1750079610852,0.76492,2614.3,2614.2,5.11635075]
[1750079614855,0.76492,2614.3,2614.2,5.11657909]
[1750079615352,0.76492,2614.3,2614.2,4.35165909]
[1750079615857,0.76492,2614.3,2614.2,3.2078]
[1750079616053,0.76492,2614.3,2614.2,3.97275]
[1750079616357,0.76492,2614.3,2614.2,4.04012406]
[1750079617358,0.76492,2614.3,2614.2,5.18398315]
[1750079617853,6.8315,2614.5,2614.2,5.18398315]
[1750079618164,0.76485,2614.6,2614.5,0.76486]
[1750079618348,30.50385,2614.6,2614.5,1.90871909]
[1750079619254,0.76485,2614.6,2614.5,1.90871909]
[1750079619460,26.7488,2614.7,2614.6,0.76483]
[1750079619660,26.7668,2614.7,2614.6,0.76483]
[1750079619866,3.2078,2614.7,2614.6,1.41863]
[1750079620158,26.7668,2614.7,2614.6,1.41863]
[1750079620460,27.5296,2614.7,2614.6,2.56248909]
[1750079620664,26.7648,2614.7,2614.6,3.85008909]
[1750079621166,27.5296,2614.7,2614.6,3.08525909]
[1750079621353,27.5296,2614.7,2614.6,3.85008909]
[1750079622159,24.3218,2614.7,2614.6,3.95008909]
[1750079622860,0.7648,2614.7,2614.6,3.95008909]
[1750079623160,30.4978,2614.7,2614.6,3.95134327]
[1750079623555,30.4978,2614.7,2614.6,1.24511327]
[1750079623755,30.4978,2614.7,2614.6,0.1]
[1750079625055,30.5068,2614.7,2614.6,0.86483]
[1750079625256,30.5068,2614.7,2614.6,2.00994327]
[1750079625958,3.21354372,2615.0,2614.9,0.76474]
[1750079626154,0.00574372,2615.0,2614.9,3.97254]
[1750079626466,0.00574372,2615.0,2614.9,6.85251117]
[1750079629560,6.151,2615.3,2615.2,0.76465]
[1750079629757,29.691,2615.3,2615.2,4.07245]
[1750079630158,29.691,2615.3,2615.2,4.74865]
[1750079630561,29.698,2615.3,2615.2,5.89264524]
[1750079630966,30.46262,2615.3,2615.2,5.89264524]
[1750079631166,30.46262,2615.3,2615.2,4.74865]
[1750079631374,30.46262,2615.3,2615.2,3.984]
[1750079631567,30.46262,2615.3,2615.2,3.3078]
[1750079632966,30.46262,2615.3,2615.2,4.07245]
[1750079633169,30.46262,2615.3,2615.2,3.3078]
[1750079633770,30.46262,2615.3,2615.2,4.07245]
[1750079634270,30.46262,2615.3,2615.2,0.1]
[1750079637672,33.67042,2615.3,2615.2,0.1]
[1750079637872,34.97632,2615.3,2615.2,0.1]
[1750079639778,33.63742,2615.3,2615.2,0.1]
[1750079640079,33.63242,2615.3,2615.2,0.1]
[1750079642072,33.63142,2615.3,2615.2,0.86465]
[1750079642273,30.42362,2615.3,2615.2,0.86465]
[1750079642679,30.42362,2615.3,2615.2,0.1]
[1750079643480,30.42362,2615.3,2615.2,0.86465]
[1750079643681,30.42362,2615.3,2615.2,0.1]
[1750079643983,30.42362,2615.3,2615.2,0.86465]
[1750079644584,30.42362,2615.3,2615.2,0.1]
[1750079645875,30.42362,2615.3,2615.2,0.16737406]
[1750079646384,31.73892,2615.3,2615.2,0.16737406]
[1750079646692,36.73892,2615.3,2615.2,0.16737406]
[1750079646883,36.73892,2615.3,2615.2,0.1]
[1750079647086,39.94672,2615.3,2615.2,0.1]
[1750079647582,3.97242,2615.3,2615.2,0.1]
[1750079647788,6.91462,2615.3,2615.2,0.86465]
[1750079647986,30.41862,2615.3,2615.2,0.93202406]
[1750079648184,30.41862,2615.3,2615.2,3.9660193]
[1750079648779,30.42162,2615.3,2615.2,3.9660193]
[1750079650377,24.27062,2615.3,2615.2,3.9660193]
[1750079651079,30.05362,2615.4,2615.3,0.76462]
[1750079651278,53.55762,2615.4,2615.3,3.22077322]
[1750079651786,53.55762,2615.4,2615.3,2.55615322]
[1750079652585,53.55762,2615.4,2615.3,1.24455322]
[1750079653381,53.55762,2615.4,2615.3,2.00917322]
[1750079654481,53.55762,2615.4,2615.3,1.24455322]
[1750079655390,53.55762,2615.4,2615.3,0.1]
[1750079655690,53.55762,2615.4,2615.3,0.86462]
[1750079656091,53.55762,2615.4,2615.3,0.1]
[1750079656587,53.55762,2615.4,2615.3,0.86462]
[1750079660989,53.55762,2615.4,2615.3,0.1]
[1750079661490,58.55762,2615.4,2615.3,0.1]
[1750079661791,0.76483,2614.6,2614.5,0.78538841]
[1750079661995,0.76498,2614.1,2614.0,2.28085675]
[1750079662195,0.76501,2614.0,2613.9,0.76501]
[1750079662695,0.76501,2614.0,2613.9,2.04851]
[1750079665396,0.76503,2613.9,2613.8,4.59069372]
[1750079665594,24.27003,2613.9,2613.8,4.59069372]
[1750079665795,24.27003,2613.9,2613.8,5.88149372]
[1750079668098,24.27003,2613.9,2613.8,2.67369372]
[1750079668494,24.27003,2613.9,2613.8,1.90864372]
[1750079668690,24.27003,2613.9,2613.8,1.38290372]
[1750079669907,23.505,2613.9,2613.8,1.38290372]
[1750079670108,24.27003,2613.9,2613.8,1.38290372]
[1750079672515,23.505,2613.9,2613.8,1.38290372]
[1750079673518,24.27003,2613.9,2613.8,1.38290372]